bitfinex-derivatives/quotes_SOLF0:USTF0_20250909
["timestamp","ask_amount","ask_price","bid_price","bid_amount"]
[1757381103587,7.74096108,212.91,212.85,1.9165128]
[1757381103890,7.74096108,212.91,212.79,436.56]
[1757381103891,7.71,212.9,212.8,0.21]
[1757381104090,7.71,212.9,212.84,1.7065128]
[1757381104293,7.71,212.9,212.82,0.21]
[1757381104492,1.7065128,212.91,212.85,1.7065128]
[1757381104790,0.02988184,212.88,212.87,1.7065128]
[1757381105191,7.71,212.92,212.87,1.7065128]
[1757381105379,0.03410618,212.9,212.87,1.7065128]
[1757381105583,7.71,212.89,212.87,1.7065128]
[1757381105979,0.03410618,212.9,212.87,1.7065128]
[1757381106188,7.71,212.89,212.86,1.7065128]
[1757381107488,7.71,212.89,212.86,1.9165128]
[1757381107989,0.03410618,212.9,212.86,1.9165128]
[1757381108292,7.71,212.89,212.86,1.7065128]
[1757381108592,0.03410618,212.9,212.86,1.7065128]
[1757381108988,7.71,212.89,212.86,1.7065128]
[1757381109482,0.03410618,212.9,212.86,1.7065128]
[1757381109688,7.71,212.89,212.86,1.7065128]
[1757381110587,0.03410618,212.9,212.81,0.21]
[1757381110588,1.7065128,212.87,212.81,0.21]
[1757381110791,1.7065128,212.85,212.78,115.38]
[1757381111092,7.71,212.84,212.78,115.38]
[1757381111492,7.73966901,212.84,212.78,115.38]
[1757381111989,9.44618181,212.84,212.78,115.38]
[1757381112594,7.73966901,212.84,212.78,115.38]
[1757381112795,9.44618181,212.84,212.78,115.38]
[1757381113792,1.73618181,212.84,212.78,115.38]
[1757381113992,7.37,212.83,212.78,115.38]
[1757381114296,1.73618181,212.84,212.78,115.38]
[1757381114693,7.37,212.83,212.79,0.0317882]
[1757381115295,7.37,212.82,212.79,0.0317882]
[1757381115790,1.7065128,212.83,212.79,0.0317882]
[1757381115982,7.37,212.81,212.79,0.0317882]
[1757381116295,7.37,212.82,212.79,0.0317882]
[1757381116488,0.02966901,212.84,212.79,0.0317882]
[1757381116684,7.37,212.83,212.79,0.0317882]
[1757381117091,0.02966901,212.84,212.79,0.0317882]
[1757381117591,7.37,212.83,212.79,0.0317882]
[1757381117796,0.02966901,212.84,212.79,0.0317882]
[1757381118291,7.37,212.83,212.79,0.0317882]
[1757381118493,0.02966901,212.84,212.79,0.0317882]
[1757381118696,7.37,212.83,212.79,0.0317882]
[1757381118893,0.02966901,212.84,212.79,0.0317882]
[1757381119194,7.37,212.83,212.79,0.0317882]
[1757381120992,0.02966901,212.84,212.79,0.0317882]
[1757381121291,7.37,212.83,212.79,0.0317882]
[1757381122090,0.02966901,212.84,212.79,0.0317882]
[1757381122499,7.37,212.83,212.79,0.0317882]
[1757381123103,0.02966901,212.84,212.79,0.0317882]
[1757381123898,0.02966901,212.84,212.8,0.22]
[1757381124199,7.39966901,212.84,212.8,0.22]
[1757381124697,7.39966901,212.84,212.79,0.0317882]
[1757381124899,7.39966901,212.84,212.8,0.22]
[1757381125097,7.39966901,212.84,212.79,0.0317882]
[1757381125600,7.39966901,212.84,212.8,0.22]
[1757381126506,0.02966901,212.84,212.8,0.22]
[1757381126802,7.37,212.83,212.8,0.22]
[1757381127597,0.02966901,212.84,212.82,0.22]
[1757381127800,0.02966901,212.84,212.81,2.67381106]
[1757381128000,0.02966901,212.84,212.83,0.22]
[1757381129707,0.02966901,212.84,212.82,2.67381106]
[1757381130201,0.02966901,212.84,212.81,121.0]
[1757381130506,7.37,212.83,212.81,121.0]
[1757381130804,0.02966901,212.84,212.81,121.22]
[1757381130997,7.39966901,212.84,212.81,121.22]
[1757381131194,7.39966901,212.84,212.81,0.22]
[1757381132103,7.37,212.83,212.79,2.92559926]
[1757381132300,0.02966901,212.84,212.79,0.2517882]
[1757381132700,7.37,212.83,212.79,0.2517882]
[1757381133807,7.37,212.83,212.8,0.22]
[1757381133996,0.02966901,212.84,212.79,0.0317882]
[1757381134201,7.39966901,212.84,212.8,0.22]
[1757381136498,0.02966901,212.84,212.81,0.22]
[1757381136703,0.02966901,212.84,212.82,0.22]
[1757381137104,0.02966901,212.84,212.8,2.67381106]
[1757381137406,0.02966901,212.84,212.82,0.22]
[1757381140711,0.02966901,212.84,212.8,2.67381106]
[1757381141108,0.02966901,212.84,212.82,0.22]
[1757381142810,0.02966901,212.84,212.83,0.22]
[1757381148614,0.02966901,212.84,212.83,0.68]
[1757381150518,12.8867018,212.92,212.83,0.68]
[1757381150811,12.8867018,212.92,212.86,2.67381106]
[1757381152714,12.8867018,212.92,212.87,0.22]
[1757381152916,7.64,212.92,212.86,2.67381106]
[1757381153119,7.64,212.92,212.86,2.89381106]
[1757381153417,7.64,212.92,212.86,2.67381106]
[1757381156621,7.64,212.92,212.86,2.89381106]
[1757381160117,7.64,212.92,212.89,2.67381106]
[1757381160321,12.90690695,212.96,212.9,0.22]
[1757381160511,12.90690695,212.96,212.89,2.67381106]
[1757381161416,5.26690695,212.96,212.86,121.22]
[1757381161617,10.31381106,212.92,212.8,2.67381106]
[1757381161818,10.31381106,212.92,212.75,436.8]
[1757381161819,7.64,212.88,212.81,21.36]
[1757381162018,7.64,212.87,212.77,21.36]
[1757381162221,0.03010598,212.87,212.77,21.36]
[1757381162721,7.64,212.86,212.77,21.36]
[1757381163113,0.03010598,212.87,212.76,115.48]
[1757381163320,7.64,212.86,212.76,115.48]
[1757381163524,0.03010598,212.87,212.76,115.48]
[1757381163918,7.64,212.86,212.76,115.48]
[1757381165025,7.64,212.86,212.76,0.22]
[1757381165418,7.64,212.84,212.73,2.67381106]
[1757381165614,7.64,212.83,212.72,24.83381106]
[1757381165819,5.26690695,212.84,212.72,24.83381106]
[1757381166015,5.26690695,212.84,212.72,22.16]
[1757381166222,0.03031723,212.8,212.72,0.22]
[1757381166425,7.64,212.79,212.72,0.22]
[1757381168026,0.03031723,212.8,212.75,0.22]
[1757381168728,0.03031723,212.8,212.74,2.67381106]
[1757381168926,0.03031723,212.8,212.75,0.22]
[1757381169423,0.03031723,212.8,212.76,0.22]
[1757381169627,7.64,212.79,212.76,0.22]
[1757381170926,0.03031723,212.8,212.74,2.67381106]
[1757381171125,7.67031723,212.8,212.74,2.67381106]
[1757381173528,7.69,212.79,212.71,117.95381106]
[1757381174329,7.69,212.79,212.71,2.67381106]
[1757381175331,7.69,212.79,212.7,0.22]
[1757381176427,2.70412829,212.8,212.69,121.0]
[1757381176635,7.69,212.79,212.69,121.0]
[1757381176824,7.97103524,212.8,212.69,121.0]
[1757381177230,2.70412829,212.8,212.69,121.0]
[1757381177529,7.69,212.79,212.69,121.0]
[1757381177732,7.69,212.79,212.67,118.17381106]
[1757381177733,7.69,212.78,212.67,118.17381106]
[1757381177934,5.26690695,212.79,212.67,118.17381106]
[1757381178126,7.69,212.78,212.67,118.17381106]
[1757381178326,1.71219493,212.76,212.69,1.71219493]
[1757381178529,7.69,212.75,212.69,1.71219493]
[1757381180131,7.69,212.75,212.72,0.22]
[1757381180337,1.71219493,212.78,212.71,1.71219493]
[1757381180538,7.69,212.77,212.71,1.71219493]
[1757381180836,1.71219493,212.76,212.67,236.28]
[1757381181038,1.71219493,212.76,212.7,1.71219493]
[1757381181437,7.69,212.75,212.7,1.71219493]
[1757381181731,1.71219493,212.76,212.7,1.71219493]
[1757381181931,9.40219493,212.76,212.7,1.71219493]
[1757381182330,7.69,212.76,212.7,1.71219493]
[1757381183538,9.40219493,212.76,212.7,1.71219493]
[1757381183742,9.40219493,212.76,212.67,115.28]
[1757381183930,7.69,212.75,212.68,1.71219493]
[1757381185135,7.69,212.73,212.68,1.71219493]
[1757381185635,1.71219493,212.74,212.68,1.71219493]
[1757381185838,7.69,212.73,212.68,1.71219493]
[1757381186039,1.71219493,212.74,212.68,1.71219493]
[1757381186633,7.69,212.73,212.68,1.71219493]
[1757381187241,7.69,212.8,212.68,1.71219493]
[1757381187437,1.71219493,212.74,212.68,1.71219493]
[1757381187741,7.69,212.73,212.68,1.71219493]
[1757381188139,1.71219493,212.74,212.66,0.22]
[1757381188340,7.69,212.71,212.67,1.71219493]
[1757381188841,7.69,212.71,212.65,116.99219493]
[1757381189041,7.72549837,212.71,212.65,116.99219493]
[1757381189743,7.72549837,212.71,212.65,115.28]
[1757381190044,7.69,212.7,212.66,1.93219493]
[1757381190637,0.03549837,212.71,212.66,1.93219493]
[1757381190842,7.69,212.7,212.66,1.93219493]
[1757381191844,0.03549837,212.71,212.66,1.93219493]
[1757381192033,7.69,212.7,212.66,1.93219493]
[1757381193952,0.03549837,212.71,212.66,1.93219493]
[1757381194949,7.69,212.7,212.67,0.22]
[1757381197351,7.69,212.7,212.67,1.93219493]
[1757381197650,7.69,212.69,212.66,0.22]
[1757381197841,7.69,212.69,212.66,1.93219493]
[1757381199552,1.7476933,212.71,212.63,121.0]
[1757381199755,1.71219493,212.69,212.63,122.71219493]
[1757381199943,7.69,212.68,212.63,122.71219493]
[1757381200144,7.69,212.68,212.63,121.0]
[1757381200344,7.69,212.68,212.64,1.71219493]
[1757381200549,1.71219493,212.67,212.62,1.71219493]
[1757381201054,1.71219493,212.67,212.61,1.71219493]
[1757381201354,1.71219493,212.65,212.55,1.0]
[1757381201548,1.71219493,212.63,212.57,1.71219493]
[1757381201947,7.69,212.66,212.58,0.25]
[1757381202149,7.69,212.66,212.6,1.71219493]
[1757381202352,7.69,212.66,212.58,0.25]
[1757381202551,9.40219493,212.66,212.59,1.71219493]
[1757381202756,7.69,212.64,212.59,1.71219493]
[1757381203054,9.40219493,212.64,212.58,0.25]
[1757381203258,9.40219493,212.64,212.57,1.71219493]
[1757381203454,7.83,212.63,212.56,115.28]
[1757381203756,7.83,212.63,212.56,116.99219493]
[1757381203954,1.71219493,212.62,212.56,115.28]
[1757381204156,7.83,212.61,212.55,118.24219493]
[1757381204358,7.83,212.61,212.55,116.53]
[1757381204554,7.83,212.61,212.55,2.96219493]
[1757381204948,7.83,212.59,212.55,2.71219493]
[1757381205161,7.83,212.59,212.55,1.0]
[1757381205659,0.02972003,212.6,212.58,0.25]
[1757381206160,0.02972003,212.6,212.57,1.96219493]
[1757381206454,0.02972003,212.6,212.58,0.25]
[1757381206652,0.02972003,212.6,212.58,1.96219493]
[1757381206857,0.02972003,212.6,212.58,0.25]
[1757381207255,7.83,212.59,212.56,1.96219493]
[1757381207553,0.02972003,212.6,212.55,2.71219493]
[1757381207858,7.85972003,212.6,212.56,0.25]
[1757381208058,7.85972003,212.6,212.57,1.71219493]
[1757381208447,0.02972003,212.6,212.57,1.71219493]
[1757381208651,7.83,212.59,212.57,1.71219493]
[1757381209059,7.85972003,212.6,212.57,1.71219493]
[1757381209961,7.85972003,212.6,212.57,1.96219493]
[1757381211659,7.85972003,212.6,212.57,0.25]
[1757381212062,0.02972003,212.6,212.59,0.25]
[1757381212954,7.83,212.67,212.59,0.25]
[1757381213151,7.83,212.7,212.64,1.71219493]
[1757381213865,1.71219493,212.69,212.64,1.71219493]
[1757381214063,7.83,212.68,212.64,1.71219493]
[1757381214265,1.71219493,212.69,212.64,1.71219493]
[1757381214564,7.83,212.7,212.64,1.71219493]
[1757381215462,7.83,212.68,212.64,1.71219493]
[1757381215655,0.03020213,212.69,212.59,121.25]
[1757381215956,7.83,212.68,212.63,1.71219493]
[1757381216259,7.83,212.68,212.62,1.71219493]
[1757381216662,7.83,212.68,212.59,0.25]
[1757381216863,7.83,212.68,212.62,1.71219493]
[1757381217264,7.83,212.68,212.64,1.96219493]
[1757381217462,7.86020213,212.69,212.66,1.71219493]
[1757381217667,7.83,212.69,212.68,1.71219493]
[1757381217864,0.03411821,212.7,212.68,1.96219493]
[1757381218165,0.03411821,212.7,212.69,1.71219493]
[1757381218367,7.86411821,212.7,212.68,1.71219493]
[1757381218756,0.03411821,212.7,212.69,0.25]
[1757381218960,0.03411821,212.7,212.69,1.71219493]
[1757381219664,0.03411821,212.7,212.67,0.03041229]
[1757381219872,7.83,212.68,212.67,0.03041229]
[1757381220569,9.54219493,212.68,212.67,0.03041229]
[1757381220864,9.54219493,212.68,212.6,1.71219493]
[1757381221168,7.83,212.66,212.6,1.71219493]
[1757381221368,7.83,212.64,212.55,1.0]
[1757381221566,5.26690695,212.65,212.63,1.71219493]
[1757381221762,10.38126286,212.74,212.55,1.0]
[1757381221763,5.26690695,212.71,212.6,0.28]
[1757381221962,0.03149979,212.66,212.6,1.99219493]
[1757381222167,0.03149979,212.66,212.61,1.71219493]
[1757381222372,1.74369472,212.66,212.55,1.0]
[1757381222561,7.83,212.63,212.61,0.03109001]
[1757381222866,1.71219493,212.64,212.61,0.03109001]
[1757381223262,7.83,212.63,212.61,0.03109001]
[1757381224659,0.03149979,212.66,212.61,0.03109001]
[1757381224860,65.8334,212.64,212.62,1.71219493]
[1757381225059,0.03149979,212.66,212.61,1.71219493]
[1757381225267,4.2325,212.62,212.61,1.71219493]
[1757381225466,4.2325,212.62,212.61,9.493e-05]
[1757381225667,4.2325,212.62,212.6,1.71219493]
[1757381225874,4.2325,212.62,212.59,121.0]
[1757381226068,4.2325,212.62,212.6,1.71219493]
[1757381227572,4.2325,212.62,212.55,117.32]
[1757381227771,4.2325,212.62,212.61,1.71219493]
[1757381230275,4.2325,212.62,212.55,117.32]
[1757381230576,0.03342493,212.64,212.55,117.32]
[1757381230577,0.03342493,212.64,212.61,1.71219493]
[1757381230771,7.83,212.63,212.61,1.71219493]
[1757381230975,7.83,212.63,212.59,1.71219493]
[1757381231570,0.03342493,212.64,212.59,1.71219493]
[1757381232172,7.83,212.63,212.59,1.71219493]
[1757381232372,0.03342493,212.64,212.61,1.71219493]
[1757381232677,7.83,212.63,212.61,1.71219493]
[1757381232874,7.83,212.63,212.55,1.0]
[1757381233077,73.6699,212.62,212.59,9.493e-05]
[1757381233877,4.2327,212.61,212.59,9.493e-05]
[1757381234177,65.8399,212.62,212.6,1.71219493]
[1757381234376,4.2327,212.61,212.6,1.71219493]
[1757381235172,4.26562493,212.64,212.6,1.71219493]
[1757381235379,4.26562493,212.64,212.63,1.71219493]
[1757381237672,0.03342493,212.64,212.61,1.71219493]
[1757381237875,0.03342493,212.64,212.59,1.71219493]
[1757381238075,7.29,212.63,212.59,1.71219493]
[1757381238276,7.29,212.62,212.59,1.71219493]
[1757381238473,7.29,212.63,212.59,1.71219493]
[1757381238672,7.29,212.63,212.55,1.0]
[1757381238981,7.29,212.63,212.57,1.71219493]
[1757381239876,7.29,212.63,212.58,1.71219493]
[1757381240374,7.29,212.63,212.55,3.67832817]
[1757381241481,12.55690695,212.63,212.55,3.67832817]
[1757381241671,12.55690695,212.63,212.55,1.0]
[1757381243483,4.2337,212.56,212.55,0.0001]
[1757381244975,0.03394922,212.58,212.55,0.4801]
[1757381245180,0.03394922,212.58,212.57,2.67832817]
[1757381245581,5.26690695,212.67,212.57,3.15832817]
[1757381245780,71.08300695,212.7,212.66,2.67832817]
[1757381245973,65.8161,212.7,212.66,2.67832817]
[1757381246180,73.1061,212.7,212.66,2.67832817]
[1757381246781,73.13960038,212.7,212.66,2.67832817]
[1757381247186,0.03350038,212.7,212.66,2.67832817]
[1757381247975,0.03350038,212.7,212.69,2.67832817]
[1757381248384,65.7934,212.77,212.69,2.67832817]
[1757381248584,7.29,212.76,212.72,2.67832817]
[1757381248876,65.7849,212.8,212.75,2.67832817]
[1757381249081,7.29,212.79,212.72,2.67832817]
[1757381249485,0.03128735,212.78,212.72,2.67832817]
[1757381252390,0.03128735,212.78,212.69,13.64]
[1757381252391,0.03128735,212.78,212.75,2.67832817]
[1757381252791,0.03128735,212.78,212.77,2.67832817]
[1757381256692,7.29,212.86,212.77,2.67832817]
[1757381257787,7.29,212.86,212.8,2.67832817]
[1757381259297,177.83960571,212.87,212.83,2.67832817]
[1757381259593,7.29,212.93,212.83,2.67832817]
[1757381260195,7.29,212.93,212.86,2.70957032]
[1757381260395,7.29,212.93,212.86,0.03124215]
[1757381260595,7.29,212.93,212.85,2.67832817]
[1757381260994,7.29,212.93,212.87,0.03354293]
[1757381275501,2.67832817,212.91,212.78,2.67832817]
[1757381275705,7.58,212.9,212.78,123.67832817]
[1757381276502,2.67832817,212.91,212.78,123.67832817]
[1757381276703,0.03023205,212.86,212.79,0.04]
[1757381277006,7.61023205,212.86,212.82,0.04]
[1757381278301,7.61023205,212.86,212.79,121.0]
[1757381278805,7.61023205,212.86,212.8,2.67832817]
[1757381281200,0.03023205,212.86,212.83,2.67832817]
[1757381282403,0.03023205,212.86,212.84,0.04]
[1757381282605,0.03023205,212.86,212.83,2.67832817]
[1757381283108,0.03023205,212.86,212.84,0.04]
[1757381283409,0.03023205,212.86,212.83,2.67832817]
[1757381283606,0.03023205,212.86,212.8,2.71832817]
[1757381283607,7.61023205,212.86,212.8,2.71832817]
[1757381283905,7.61023205,212.86,212.8,2.67832817]
[1757381284709,7.61023205,212.86,212.77,2.67832817]
[1757381285004,7.58,212.85,212.77,2.67832817]
[1757381285712,7.58,212.85,212.74,2.67832817]
[1757381286309,0.03331644,212.82,212.75,0.04]
[1757381286509,7.58,212.81,212.77,2.67832817]
[1757381287509,0.03331644,212.82,212.8,2.67832817]
[1757381288110,7.58,212.81,212.8,2.67832817]
[1757381288319,0.03331644,212.82,212.77,0.04]
[1757381288320,0.03331644,212.82,212.77,2.67832817]
[1757381288705,7.58,212.81,212.77,2.67832817]
[1757381289111,0.03331644,212.82,212.77,2.67832817]
[1757381289508,7.58,212.81,212.77,2.67832817]
[1757381289703,0.03331644,212.82,212.77,2.67832817]
[1757381290212,7.58,212.81,212.77,2.67832817]
[1757381290615,0.03331644,212.82,212.77,2.67832817]
[1757381291417,7.58,212.81,212.77,2.67832817]
[1757381291614,0.03331644,212.82,212.77,2.67832817]
[1757381292513,7.58,212.81,212.77,2.67832817]
[1757381293213,0.03331644,212.82,212.77,2.67832817]
[1757381293408,7.19,212.81,212.77,2.67832817]
[1757381294009,0.03331644,212.82,212.78,0.02]
[1757381294319,0.03331644,212.82,212.8,2.67832817]
[1757381296824,5.26690695,212.88,212.81,0.02]
[1757381297125,7.19,212.89,212.84,2.69832817]
[1757381297326,7.19,212.89,212.85,0.02]
[1757381298119,7.19,212.89,212.85,0.05071878]
[1757381298324,7.19,212.89,212.87,2.67832817]
[1757381300031,7.19,212.89,212.85,0.05071878]
[1757381300231,7.19,212.89,212.86,2.67832817]
[1757381300428,7.19,212.89,212.88,1.70931392]
[1757381300632,7.19,212.89,212.85,0.05071878]
[1757381300633,5.26690695,212.9,212.85,1.7400327]
[1757381300833,7.19,212.88,212.85,0.03071878]
[1757381301129,1.70931392,212.9,212.85,0.03071878]
[1757381301130,7.19,212.86,212.85,0.03071878]
[1757381302327,12.45690695,212.86,212.85,0.03071878]
[1757381311237,7.19,212.86,212.85,0.03071878]
[1757381311441,7.19,212.86,212.81,1.70931392]
[1757381311642,5.26759812,212.84,212.81,1.70931392]
[1757381311942,7.19,212.82,212.81,1.70931392]
[1757381312537,7.19,212.83,212.79,1.70931392]
[1757381312742,5.26759812,212.82,212.79,1.70931392]
[1757381312939,7.19,212.82,212.79,1.70931392]
[1757381313136,7.19,212.82,212.75,1.70931392]
[1757381313340,6.97691204,212.83,212.63,121.05]
[1757381313341,1.70931392,212.76,212.63,121.05]
[1757381313638,7.19,212.73,212.68,1.70931392]
[1757381313841,6.97691204,212.74,212.68,1.70931392]
[1757381313842,7.19,212.71,212.68,1.70931392]
[1757381314234,7.19,212.71,212.63,0.05]
[1757381314438,0.03057317,212.72,212.69,1.70931392]
[1757381314639,0.03057317,212.72,212.71,1.75931392]
[1757381315441,5.26759812,212.79,212.72,0.05]
[1757381315646,7.19,212.8,212.78,1.70931392]
[1757381316038,5.26759812,212.81,212.72,0.05]
[1757381316238,7.19,212.8,212.77,1.70931392]
[1757381316443,7.19,212.8,212.72,0.05]
[1757381316444,12.45759812,212.8,212.72,0.05]
[1757381316644,5.26759812,212.8,212.76,1.74367653]
[1757381317147,7.19,212.79,212.76,1.74367653]
[1757381319241,5.26759812,212.8,212.76,1.74367653]
[1757381319446,7.19,212.79,212.76,1.74367653]
[1757381319746,12.45759812,212.81,212.78,1.70931392]
[1757381319944,7.19,212.81,212.78,1.70931392]
[1757381320549,5.26759812,212.82,212.78,1.70931392]
[1757381320748,7.19,212.81,212.78,1.70931392]
[1757381321145,5.26759812,212.82,212.78,1.70931392]
[1757381321648,5.26759812,212.82,212.76,0.03436261]
[1757381321851,5.26759812,212.82,212.78,1.70931392]
[1757381322051,7.19,212.8,212.78,1.70931392]
[1757381322350,7.19,212.81,212.78,1.70931392]
[1757381322545,5.26759812,212.82,212.78,1.70931392]
[1757381322744,7.19,212.81,212.78,1.70931392]
[1757381322946,5.26759812,212.82,212.78,1.70931392]
[1757381323251,7.61,212.81,212.78,1.70931392]
[1757381323649,5.26759812,212.83,212.78,1.70931392]
[1757381324148,7.61,212.82,212.78,1.70931392]
[1757381324342,5.26759812,212.83,212.78,1.70931392]
[1757381324539,7.61,212.82,212.78,1.70931392]
[1757381324743,5.26759812,212.82,212.78,1.70931392]
[1757381324943,7.61,212.81,212.78,1.70931392]
[1757381325245,7.61,212.82,212.78,1.70931392]
[1757381325444,5.26759812,212.83,212.78,1.70931392]
[1757381325651,12.87759812,212.83,212.8,1.70931392]
[1757381325851,5.26759812,212.85,212.8,1.70931392]
[1757381326652,5.26759812,212.83,212.8,1.7426619]
[1757381326851,7.61,212.83,212.8,1.7426619]
[1757381327048,5.26759812,212.84,212.8,0.03334798]
[1757381327247,7.61,212.84,212.82,1.70931392]
[1757381327653,5.26759812,212.85,212.82,1.70931392]
[1757381327654,12.87759812,212.85,212.82,1.70931392]
[1757381327952,7.61,212.85,212.82,1.70931392]
[1757381328155,5.26759812,212.86,212.84,1.70931392]
[1757381328654,184.155156,212.91,212.84,1.70931392]
[1757381328655,12.87759812,212.87,212.84,1.70931392]
[1757381329155,12.87759812,212.87,212.85,1.70931392]
[1757381329746,5.26759812,212.87,212.85,1.70931392]
[1757381329947,5.26759812,212.89,212.85,1.70931392]
[1757381330152,7.61,212.88,212.87,1.70931392]
[1757381332454,5.26759812,212.9,212.87,1.70931392]
[1757381332658,5.26759812,212.93,212.89,1.77931392]
[1757381332858,7.61,212.92,212.89,0.07]
[1757381333160,7.61,212.92,212.9,1.70931392]
[1757381333553,5.26759812,212.94,212.9,1.70931392]
[1757381333753,5.26759812,212.96,212.93,1.77931392]
[1757381333957,5.26759812,212.97,212.95,1.70931392]
[1757381334153,12.87759812,212.98,212.95,1.70931392]
[1757381334460,12.87759812,212.98,212.97,1.70931392]
[1757381334461,7.61,212.98,212.97,1.70931392]
[1757381335348,7.61,213.01,212.97,1.70931392]
[1757381335553,7.61,213.0,212.97,1.70931392]
[1757381335857,12.87759812,213.01,212.97,1.70931392]
[1757381336059,5.26759812,213.01,212.97,1.70931392]
[1757381336262,7.61,213.0,212.97,1.70931392]
[1757381336760,5.26759812,213.02,212.99,1.77931392]
[1757381336955,5.26759812,213.02,213.01,1.70931392]
[1757381337158,7.61,213.02,213.01,1.70931392]
[1757381338260,5.26759812,213.05,212.99,1.74468241]
[1757381338458,12.87759812,213.05,213.01,1.70931392]
[1757381338657,7.61,213.06,213.02,1.70931392]
[1757381338862,7.61,213.05,213.02,1.70931392]
[1757381339052,5.26759812,213.07,213.02,1.70931392]
[1757381339256,5.26759812,213.07,213.02,1.77931392]
[1757381339257,7.61,213.06,213.02,1.77931392]
[1757381339457,7.61,213.08,213.02,1.70931392]
[1757381339751,12.87759812,213.08,213.02,1.70931392]
[1757381340153,7.61,213.07,213.03,0.03393091]
[1757381340461,5.26759812,213.08,213.03,0.03393091]
[1757381340655,7.61,213.07,213.03,0.03393091]
[1757381341057,5.26759812,213.08,213.03,0.03393091]
[1757381341258,7.61,213.07,213.03,0.03393091]
[1757381341454,5.26759812,213.09,213.03,0.03393091]
[1757381341656,7.61,213.06,213.03,0.03393091]
[1757381341863,1.70931392,213.07,213.03,0.03393091]
[1757381342063,7.61,213.08,213.03,0.03393091]
[1757381342257,6.97691204,213.09,213.03,0.03393091]
[1757381342458,7.61,213.06,213.03,0.03393091]
[1757381342656,7.61,213.04,213.03,0.03393091]
[1757381342863,7.61,213.04,212.97,1.70931392]
[1757381343063,7.61,213.02,212.96,1.70931392]
[1757381343761,7.61,213.0,212.91,0.07]
[1757381343954,7.61,213.0,212.93,1.70931392]
[1757381344856,1.74057491,213.01,212.95,1.70931392]
[1757381345765,7.61,213.0,212.95,1.70931392]
[1757381345964,1.74057491,213.01,212.95,1.70931392]
[1757381346159,7.61,213.0,212.95,1.70931392]
[1757381346365,7.64126099,213.01,212.95,1.70931392]
[1757381349062,1.70931392,213.0,212.95,1.70931392]
[1757381349459,7.61,212.97,212.93,1.70931392]
[1757381349765,45.02,213.06,212.87,121.1001]
[1757381349766,9.31931392,212.96,212.95,0.02975629]
[1757381350165,9.31931392,212.96,212.89,1.70931392]
[1757381352473,7.61,212.95,212.87,0.0001]
[1757381352670,1.70931392,212.94,212.88,1.70931392]
[1757381353368,7.82,212.93,212.88,1.70931392]
[1757381353667,7.82,212.93,212.87,0.0001]
[1757381353872,1.70931392,212.92,212.87,0.0001]
[1757381354268,7.82,212.91,212.87,0.0001]
[1757381355173,9.52931392,212.92,212.87,0.0001]
[1757381356572,7.82,212.92,212.87,0.0001]
[1757381358470,9.55939862,212.93,212.87,1.70941392]
[1757381359272,9.55939862,212.93,212.87,0.0001]
[1757381359472,7.8500847,212.93,212.87,0.0001]
[1757381359778,1.70931392,212.92,212.87,0.0001]
[1757381360373,7.82,212.91,212.87,0.0001]
[1757381360775,7.82,212.91,212.88,0.09]
[1757381360975,7.82,212.92,212.88,0.09]
[1757381361173,7.82,212.92,212.89,1.70931392]
[1757381361375,0.0300847,212.93,212.89,1.79931392]
[1757381361777,0.0300847,212.93,212.91,1.70931392]
[1757381362175,0.0300847,212.93,212.91,1.79931392]
[1757381362382,0.0300847,212.93,212.91,0.09]
[1757381364384,0.0300847,212.93,212.89,2.66968416]
[1757381364578,7.8500847,212.93,212.89,2.75968416]
[1757381365076,0.0300847,212.93,212.9,0.09]
[1757381366491,0.0300847,212.93,212.89,2.66968416]
[1757381366986,0.0300847,212.93,212.9,0.09]
[1757381367491,0.0300847,212.93,212.89,2.66968416]
[1757381368089,0.0300847,212.93,212.9,0.09]
[1757381369386,0.0300847,212.93,212.89,2.66968416]
[1757381369592,0.0300847,212.93,212.9,0.09]
[1757381370290,0.0300847,212.93,212.89,2.66968416]
[1757381370490,0.0300847,212.93,212.9,0.09]